[Event "*** Titled Tuesday Blitz"]
[Site "Chess.com"]
[Date "2020.04.14"]
[Round "2"]
[White "karinachess1"]
[Black "fabianvivasz"]
[Result "1-0"]
[WhiteElo "2491"]
[BlackElo "2233"]
[TimeControl "180+1"]
[EndTime "10:15:59 PDT"]
[Termination "karinachess1 won by resignation"]

1. Nf3 {[%clk 0:03:00.9]} 1... c5 {[%clk 0:02:58]} 2. e4 {[%clk 0:02:59.8]} 2...
d6 {[%clk 0:02:57.4]} 3. d4 {[%clk 0:02:59.7]} 3... cxd4 {[%clk 0:02:58.3]} 4.
Nxd4 {[%clk 0:02:59.9]} 4... Nf6 {[%clk 0:02:59]} 5. Nc3 {[%clk 0:02:59.7]} 5...
a6 {[%clk 0:02:59.6]} 6. Be3 {[%clk 0:02:57.5]} 6... e5 {[%clk 0:02:59.2]} 7.
Nf3 {[%clk 0:02:57.1]} 7... Be7 {[%clk 0:02:55.8]} 8. Bc4 {[%clk 0:02:56]} 8...
h6 {[%clk 0:02:53.5]} 9. O-O {[%clk 0:02:52.9]} 9... O-O {[%clk 0:02:51.6]} 10.
Qe2 {[%clk 0:02:48.4]} 10... Be6 {[%clk 0:02:50.8]} 11. Bb3 {[%clk 0:02:46.7]}
11... Nbd7 {[%clk 0:02:45.1]} 12. Rad1 {[%clk 0:02:45.9]} 12... Qc7 {[%clk
0:02:41.1]} 13. Nh4 {[%clk 0:02:38.2]} 13... Bxb3 {[%clk 0:01:52.1]} 14. axb3
{[%clk 0:02:33.5]} 14... Rfc8 {[%clk 0:01:47.6]} 15. Nf5 {[%clk 0:02:30]} 15...
Bf8 {[%clk 0:01:47.8]} 16. Qf3 {[%clk 0:02:25.1]} 16... Kh7 {[%clk 0:01:25.8]}
17. Qh3 {[%clk 0:02:00.1]} 17... Nc5 {[%clk 0:00:59.2]} 18. Qh4 {[%clk
0:01:50.1]} 18... Ne6 {[%clk 0:00:48.4]} 19. Bxh6 {[%clk 0:01:36.5]} 19... gxh6
{[%clk 0:00:38.7]} 20. Qxf6 {[%clk 0:01:36.3]} 20... Rd8 {[%clk 0:00:20.7]} 21.
Rd3 {[%clk 0:01:27.3]} 21... Nf4 {[%clk 0:00:13.3]} 22. Rg3 {[%clk 0:01:25]}
22... Ng6 {[%clk 0:00:11]} 23. h4 {[%clk 0:01:12.8]} 23... Be7 {[%clk
0:00:05.1]} 24. Qxf7+ {[%clk 0:01:12]} 24... Kh8 {[%clk 0:00:04.7]} 1-0

[Event "*** Titled Tuesday Blitz"]
[Site "Chess.com"]
[Date "2020.04.14"]
[Round "2"]
[White "lifeissofun"]
[Black "Orest_Vovk"]
[Result "0-1"]
[WhiteElo "2214"]
[BlackElo "2475"]
[TimeControl "180+1"]
[EndTime "10:16:00 PDT"]
[Termination "Orest_Vovk won by resignation"]

1. e4 {[%clk 0:03:00.9]} 1... Nc6 {[%clk 0:02:58.7]} 2. d4 {[%clk 0:03:00.4]}
2... e5 {[%clk 0:02:58.1]} 3. Nf3 {[%clk 0:02:57.5]} 3... Nxd4 {[%clk
0:02:57.1]} 4. Nxd4 {[%clk 0:02:55.4]} 4... exd4 {[%clk 0:02:57]} 5. Qxd4 {[%clk
0:02:56.3]} 5... Ne7 {[%clk 0:02:56.5]} 6. Bc4 {[%clk 0:02:54.7]} 6... Nc6
{[%clk 0:02:56.4]} 7. Qd1 {[%clk 0:02:54.5]} 7... Bb4+ {[%clk 0:02:55.8]} 8. c3
{[%clk 0:02:54.2]} 8... Bc5 {[%clk 0:02:55.8]} 9. O-O {[%clk 0:02:53.8]} 9... d6
{[%clk 0:02:55.7]} 10. Kh1 {[%clk 0:02:49.6]} 10... O-O {[%clk 0:02:54]} 11. f4
{[%clk 0:02:44]} 11... Qh4 {[%clk 0:02:53.8]} 12. Qf3 {[%clk 0:02:39.7]} 12...
Bg4 {[%clk 0:02:47]} 13. Qd3 {[%clk 0:02:35.2]} 13... Be6 {[%clk 0:02:43.3]} 14.
Bd5 {[%clk 0:02:30.3]} 14... Bxd5 {[%clk 0:02:39.8]} 15. exd5 {[%clk 0:02:30.3]}
15... Ne7 {[%clk 0:02:32.5]} 16. Be3 {[%clk 0:02:30.8]} 16... Bxe3 {[%clk
0:02:31]} 17. Qxe3 {[%clk 0:02:31]} 17... Nf5 {[%clk 0:02:30.8]} 18. Qf3 {[%clk
0:02:31.3]} 18... Rfe8 {[%clk 0:02:28.8]} 19. Nd2 {[%clk 0:02:23.8]} 19... Re3
{[%clk 0:02:27.8]} 20. Qf2 {[%clk 0:02:16.8]} 20... Qxf2 {[%clk 0:02:10.8]} 21.
Rxf2 {[%clk 0:02:16.3]} 21... Rae8 {[%clk 0:02:11]} 22. Nf3 {[%clk 0:02:09.7]}
22... Rd3 {[%clk 0:02:05.1]} 23. c4 {[%clk 0:01:59.2]} 23... Nd4 {[%clk
0:01:59.4]} 24. Ng1 {[%clk 0:01:28.8]} 24... g6 {[%clk 0:01:53.1]} 25. h3 {[%clk
0:01:28.3]} 25... Ree3 {[%clk 0:01:49.5]} 26. Kh2 {[%clk 0:01:26.6]} 26... h5
{[%clk 0:01:45.3]} 27. Raf1 {[%clk 0:01:24.1]} 27... a5 {[%clk 0:01:42.3]} 28.
Nf3 {[%clk 0:01:18.6]} 28... Nxf3+ {[%clk 0:01:41.4]} 29. Rxf3 {[%clk 0:01:19]}
29... Rxf3 {[%clk 0:01:40]} 30. Rxf3 {[%clk 0:01:19.1]} 30... Rxf3 {[%clk
0:01:32.2]} 31. gxf3 {[%clk 0:01:19.9]} 31... Kg7 {[%clk 0:01:32.5]} 32. Kg3
{[%clk 0:01:15.2]} 32... Kf6 {[%clk 0:01:31.3]} 33. Kf2 {[%clk 0:01:15.7]} 33...
Kf5 {[%clk 0:01:30.4]} 34. Ke3 {[%clk 0:01:15.9]} 34... h4 {[%clk 0:01:27.2]}
35. b3 {[%clk 0:01:13.5]} 35... c5 {[%clk 0:01:03.7]} 36. a3 {[%clk 0:01:09.3]}
36... b6 {[%clk 0:01:00.1]} 37. a4 {[%clk 0:01:05.9]} 37... f6 {[%clk
0:00:57.4]} 38. Ke2 {[%clk 0:01:05]} 38... Kxf4 {[%clk 0:00:57.2]} 39. Kf2
{[%clk 0:01:05.6]} 39... f5 {[%clk 0:00:56.7]} 40. Kg2 {[%clk 0:01:02]} 40...
Ke3 {[%clk 0:00:56.7]} 0-1

[Event "*** Titled Tuesday Blitz"]
[Site "Chess.com"]
[Date "2020.04.14"]
[Round "2"]
[White "mathapples"]
[Black "SahajGrover"]
[Result "0-1"]
[WhiteElo "2333"]
[BlackElo "2700"]
[TimeControl "180+1"]
[EndTime "10:16:01 PDT"]
[Termination "SahajGrover won by resignation"]

1. d4 {[%clk 0:03:00.9]} 1... d5 {[%clk 0:02:58.8]} 2. c4 {[%clk 0:03:01.1]}
2... e6 {[%clk 0:02:59.4]} 3. Nc3 {[%clk 0:03:00.4]} 3... a6 {[%clk 0:02:59.2]}
4. cxd5 {[%clk 0:02:59.7]} 4... exd5 {[%clk 0:02:59.4]} 5. Nf3 {[%clk 0:03:00]}
5... Nf6 {[%clk 0:02:59.7]} 6. Bf4 {[%clk 0:02:59.6]} 6... Bd6 {[%clk
0:02:59.1]} 7. Bxd6 {[%clk 0:02:59.3]} 7... Qxd6 {[%clk 0:03:00]} 8. e3 {[%clk
0:02:59.3]} 8... Bg4 {[%clk 0:02:59.1]} 9. Be2 {[%clk 0:02:58.9]} 9... Nbd7
{[%clk 0:02:58.3]} 10. O-O {[%clk 0:02:58.4]} 10... O-O {[%clk 0:02:58.5]} 11.
h3 {[%clk 0:02:57.6]} 11... Bh5 {[%clk 0:02:57.7]} 12. Rc1 {[%clk 0:02:42.5]}
12... c6 {[%clk 0:02:55.2]} 13. Na4 {[%clk 0:02:37.3]} 13... Ne4 {[%clk
0:02:53.5]} 14. Nd2 {[%clk 0:02:36.8]} 14... Bxe2 {[%clk 0:02:51]} 15. Qxe2
{[%clk 0:02:36.7]} 15... f5 {[%clk 0:02:49.1]} 16. Nxe4 {[%clk 0:02:28.3]} 16...
fxe4 {[%clk 0:02:49.3]} 17. Nc5 {[%clk 0:02:28.4]} 17... Nxc5 {[%clk 0:02:29.2]}
18. Rxc5 {[%clk 0:02:27.9]} 18... Rf6 {[%clk 0:02:27.1]} 19. f4 {[%clk
0:02:25.8]} 19... exf3 {[%clk 0:02:24.8]} 20. Rxf3 {[%clk 0:02:25.8]} 20... Raf8
{[%clk 0:02:25.3]} 21. Rxf6 {[%clk 0:02:22.8]} 21... Qxf6 {[%clk 0:02:24.9]} 22.
Rc1 {[%clk 0:02:19.8]} 22... Re8 {[%clk 0:02:24.4]} 23. Rf1 {[%clk 0:02:18.8]}
23... Qxd4 {[%clk 0:01:59.4]} 24. Rf3 {[%clk 0:02:06.1]} 24... Qh4 {[%clk
0:01:23.9]} 25. Kh2 {[%clk 0:02:02.6]} 25... h6 {[%clk 0:01:14.7]} 26. Qd3
{[%clk 0:02:01.4]} 26... Qe4 {[%clk 0:01:14.1]} 27. Qb3 {[%clk 0:01:58.1]} 27...
Qe5+ {[%clk 0:01:14.3]} 28. Kh1 {[%clk 0:01:57.3]} 28... Re7 {[%clk 0:01:15.1]}
29. Qb6 {[%clk 0:01:47.4]} 29... Qc7 {[%clk 0:01:11.9]} 30. Qa7 {[%clk 0:01:40]}
30... Kh7 {[%clk 0:01:07.7]} 31. Rf8 {[%clk 0:01:36]} 31... Qg3 {[%clk
0:00:52.9]} 32. Qa8 {[%clk 0:01:34.5]} 32... Rxe3 {[%clk 0:00:47.1]} 33. Rh8+
{[%clk 0:01:33.6]} 33... Kg6 {[%clk 0:00:47.2]} 34. Rxh6+ {[%clk 0:01:31.4]}
34... Kxh6 {[%clk 0:00:47.4]} 35. Qh8+ {[%clk 0:01:29.2]} 35... Kg6 {[%clk
0:00:47.6]} 0-1

[Event "*** Titled Tuesday Blitz"]
[Site "Chess.com"]
[Date "2020.04.14"]
[Round "2"]
[White "beto-betun"]
[Black "Sanyura"]
[Result "0-1"]
[WhiteElo "2097"]
[BlackElo "2399"]
[TimeControl "180+1"]
[EndTime "10:16:05 PDT"]
[Termination "Sanyura won on time"]

1. d4 {[%clk 0:03:00.9]} 1... Nf6 {[%clk 0:02:58.3]} 2. Nf3 {[%clk 0:03:00.8]}
2... g6 {[%clk 0:02:58.5]} 3. g3 {[%clk 0:02:58.3]} 3... Bg7 {[%clk 0:02:58.6]}
4. Bg2 {[%clk 0:02:58.2]} 4... O-O {[%clk 0:02:58.6]} 5. O-O {[%clk 0:02:58.3]}
5... d6 {[%clk 0:02:59.1]} 6. c4 {[%clk 0:02:57.9]} 6... Nbd7 {[%clk 0:02:59.7]}
7. Nc3 {[%clk 0:02:57.5]} 7... e5 {[%clk 0:03:00.2]} 8. e4 {[%clk 0:02:57]} 8...
exd4 {[%clk 0:03:00.4]} 9. Nxd4 {[%clk 0:02:56.9]} 9... Nc5 {[%clk 0:03:00.4]}
10. Re1 {[%clk 0:02:50]} 10... Ng4 {[%clk 0:02:59.4]} 11. f4 {[%clk 0:01:54.1]}
11... c6 {[%clk 0:02:50.4]} 12. h3 {[%clk 0:01:50.2]} 12... Qb6 {[%clk
0:02:47.6]} 13. hxg4 {[%clk 0:01:35.7]} 13... Ne6 {[%clk 0:02:47.4]} 14. Kh2
{[%clk 0:01:06.5]} 14... Bxd4 {[%clk 0:02:41.8]} 15. Qe2 {[%clk 0:00:50.7]}
15... Bg7 {[%clk 0:02:18.7]} 16. Be3 {[%clk 0:00:45.4]} 16... Qa5 {[%clk
0:02:12.4]} 17. Rad1 {[%clk 0:00:33.7]} 17... Rd8 {[%clk 0:01:52.2]} 18. f5
{[%clk 0:00:24.6]} 18... Nf8 {[%clk 0:01:47.6]} 19. g5 {[%clk 0:00:13.8]} 19...
gxf5 {[%clk 0:01:44.1]} 20. exf5 {[%clk 0:00:13.7]} 20... Bxf5 {[%clk
0:01:42.5]} 21. Rf1 {[%clk 0:00:14.3]} 21... Bg6 {[%clk 0:01:41.4]} 22. Ne4
{[%clk 0:00:10.5]} 22... Re8 {[%clk 0:01:39.5]} 23. Nf6+ {[%clk 0:00:08.8]}
23... Kh8 {[%clk 0:01:36.5]} 24. Qf3 {[%clk 0:00:05.2]} 24... Qe5 {[%clk
0:01:32.6]} 25. Bf4 {[%clk 0:00:04]} 25... Qf5 {[%clk 0:01:29.6]} 26. g4 {[%clk
0:00:03.4]} 26... Qc2 {[%clk 0:01:29]} 27. Rf2 {[%clk 0:00:02.1]} 27... Qxc4
{[%clk 0:01:27.6]} 28. Qh3 {[%clk 0:00:02]} 28... Ne6 {[%clk 0:01:22]} 29. Rh1
{[%clk 0:00:01.3]} 29... Nxf4 {[%clk 0:01:20.5]} 0-1

[Event "*** Titled Tuesday Blitz"]
[Site "Chess.com"]
[Date "2020.04.14"]
[Round "2"]
[White "Etoilegeniale"]
[Black "viditchess"]
[Result "0-1"]
[WhiteElo "2507"]
[BlackElo "2986"]
[TimeControl "180+1"]
[EndTime "10:16:07 PDT"]
[Termination "viditchess won by resignation"]

1. e4 {[%clk 0:03:00.9]} 1... c6 {[%clk 0:02:59.2]} 2. Nc3 {[%clk 0:02:54.4]}
2... d5 {[%clk 0:02:59.5]} 3. d4 {[%clk 0:02:52.1]} 3... dxe4 {[%clk 0:02:58.8]}
4. Nxe4 {[%clk 0:02:52]} 4... Nf6 {[%clk 0:02:59.5]} 5. Nxf6+ {[%clk 0:02:51.4]}
5... exf6 {[%clk 0:03:00.4]} 6. c3 {[%clk 0:02:49.8]} 6... Bd6 {[%clk
0:03:00.9]} 7. Bd3 {[%clk 0:02:49.7]} 7... O-O {[%clk 0:03:00]} 8. Ne2 {[%clk
0:02:48.8]} 8... Re8 {[%clk 0:02:59.7]} 9. Qc2 {[%clk 0:02:48.4]} 9... h5 {[%clk
0:02:59.8]} 10. O-O {[%clk 0:02:45.1]} 10... h4 {[%clk 0:02:59.2]} 11. Bf4
{[%clk 0:02:42.3]} 11... Na6 {[%clk 0:02:44.6]} 12. Bxd6 {[%clk 0:02:38.2]}
12... Qxd6 {[%clk 0:02:44.7]} 13. Bxa6 {[%clk 0:02:27.1]} 13... bxa6 {[%clk
0:02:44]} 14. h3 {[%clk 0:02:27.1]} 14... c5 {[%clk 0:02:32.2]} 15. dxc5 {[%clk
0:02:19]} 15... Qxc5 {[%clk 0:02:32.2]} 16. Nd4 {[%clk 0:02:18.6]} 16... Bb7
{[%clk 0:02:31.2]} 17. Qf5 {[%clk 0:01:45.9]} 17... Re5 {[%clk 0:02:28.8]} 18.
Qd7 {[%clk 0:01:30.4]} 18... Qb6 {[%clk 0:02:27.2]} 19. Rae1 {[%clk 0:00:36.9]}
19... Rd8 {[%clk 0:02:22]} 20. Qa4 {[%clk 0:00:34.6]} 20... Rg5 {[%clk
0:01:56.4]} 21. Re8+ {[%clk 0:00:24]} 21... Rxe8 {[%clk 0:01:48]} 22. Qxe8+
{[%clk 0:00:23.5]} 22... Kh7 {[%clk 0:01:48.9]} 23. f3 {[%clk 0:00:23.4]} 23...
Qxb2 {[%clk 0:01:44.8]} 24. Rf2 {[%clk 0:00:20.1]} 24... Qxc3 {[%clk 0:01:40.2]}
25. Qxf7 {[%clk 0:00:20.1]} 25... Bd5 {[%clk 0:01:17]} 26. Qxa7 {[%clk
0:00:18.8]} 26... Qe3 {[%clk 0:01:09.8]} 27. Nc6 {[%clk 0:00:13]} 27... Qc1+
{[%clk 0:01:06.9]} 0-1

[Event "*** Titled Tuesday Blitz"]
[Site "Chess.com"]
[Date "2020.04.14"]
[Round "2"]
[White "WinningButNotReally"]
[Black "secretsuperstar7"]
[Result "1-0"]
[WhiteElo "2424"]
[BlackElo "2143"]
[TimeControl "180+1"]
[EndTime "10:16:09 PDT"]
[Termination "WinningButNotReally won by resignation"]

1. Nf3 {[%clk 0:03:00.9]} 1... d5 {[%clk 0:02:54.5]} 2. c4 {[%clk 0:03:00.7]}
2... c6 {[%clk 0:02:45.1]} 3. d4 {[%clk 0:03:00.5]} 3... e6 {[%clk 0:02:40]} 4.
g3 {[%clk 0:03:00.4]} 4... dxc4 {[%clk 0:02:35.8]} 5. Bg2 {[%clk 0:03:00.4]}
5... b5 {[%clk 0:02:35.2]} 6. a4 {[%clk 0:02:57.8]} 6... Bb7 {[%clk 0:02:30.2]}
7. Ne5 {[%clk 0:02:56.3]} 7... a6 {[%clk 0:02:22]} 8. e3 {[%clk 0:02:50.8]} 8...
Bd6 {[%clk 0:02:19.1]} 9. Qg4 {[%clk 0:02:21.7]} 9... g6 {[%clk 0:02:03.5]} 10.
O-O {[%clk 0:02:17.1]} 10... Ne7 {[%clk 0:01:56.1]} 11. Nc3 {[%clk 0:02:12.7]}
11... O-O {[%clk 0:01:54.9]} 12. e4 {[%clk 0:01:50.6]} 12... f5 {[%clk
0:01:25.7]} 13. Qh4 {[%clk 0:01:44.9]} 13... Nd7 {[%clk 0:01:20.6]} 14. Bg5
{[%clk 0:01:39.7]} 14... Re8 {[%clk 0:01:12.7]} 15. exf5 {[%clk 0:01:29.4]}
15... exf5 {[%clk 0:01:08]} 16. Nxc6 {[%clk 0:01:21.5]} 16... Bxc6 {[%clk
0:00:56.4]} 17. Bxc6 {[%clk 0:01:20.9]} 17... Rc8 {[%clk 0:00:38.4]} 18. Bd5+
{[%clk 0:01:08.9]} 18... Kg7 {[%clk 0:00:15]} 19. axb5 {[%clk 0:01:07.6]} 19...
Qc7 {[%clk 0:00:10.8]} 20. Qh6+ {[%clk 0:01:03.6]} 20... Kh8 {[%clk 0:00:10.7]}
21. Be6 {[%clk 0:00:58.4]} 21... axb5 {[%clk 0:00:05.7]} 22. Bxd7 {[%clk
0:00:57.4]} 22... Qxd7 {[%clk 0:00:04.7]} 23. Bf6+ {[%clk 0:00:57.2]} 1-0

[Event "*** Titled Tuesday Blitz"]
[Site "Chess.com"]
[Date "2020.04.14"]
[Round "2"]
[White "temus_galaktionov"]
[Black "ElliPaehtz"]
[Result "1-0"]
[WhiteElo "2759"]
[BlackElo "2528"]
[TimeControl "180+1"]
[EndTime "10:16:12 PDT"]
[Termination "temus_galaktionov won by resignation"]

1. d4 {[%clk 0:02:38.6]} 1... e6 {[%clk 0:02:57.6]} 2. c4 {[%clk 0:02:37.7]}
2... b6 {[%clk 0:02:57]} 3. Nf3 {[%clk 0:02:36.8]} 3... Bb7 {[%clk 0:02:57]} 4.
g3 {[%clk 0:02:35.9]} 4... Bb4+ {[%clk 0:02:55.8]} 5. Bd2 {[%clk 0:02:35.7]}
5... Bxf3 {[%clk 0:02:54.9]} 6. exf3 {[%clk 0:02:34.6]} 6... Bxd2+ {[%clk
0:02:54.9]} 7. Qxd2 {[%clk 0:02:35.5]} 7... d5 {[%clk 0:02:55.2]} 8. Bg2 {[%clk
0:02:35.5]} 8... Ne7 {[%clk 0:02:54.8]} 9. f4 {[%clk 0:02:35.5]} 9... O-O {[%clk
0:02:54.3]} 10. O-O {[%clk 0:02:34.7]} 10... c6 {[%clk 0:02:51.9]} 11. b3 {[%clk
0:02:32.4]} 11... Nd7 {[%clk 0:02:51.7]} 12. Nc3 {[%clk 0:02:31.9]} 12... Nf6
{[%clk 0:02:51.3]} 13. Rfd1 {[%clk 0:02:31.8]} 13... Qd6 {[%clk 0:02:51.2]} 14.
Rac1 {[%clk 0:02:31]} 14... Rac8 {[%clk 0:02:46.1]} 15. Na4 {[%clk 0:02:26.7]}
15... Rfd8 {[%clk 0:02:44.6]} 16. c5 {[%clk 0:02:26.4]} 16... Qb8 {[%clk
0:02:42.9]} 17. Qb4 {[%clk 0:02:23.7]} 17... b5 {[%clk 0:02:40.2]} 18. Nc3
{[%clk 0:02:23.2]} 18... Qc7 {[%clk 0:02:37.5]} 19. Ne2 {[%clk 0:02:16.6]} 19...
Ne4 {[%clk 0:02:35.3]} 20. a4 {[%clk 0:02:04.2]} 20... a5 {[%clk 0:02:33.4]} 21.
Qa3 {[%clk 0:02:04]} 21... b4 {[%clk 0:02:33.6]} 22. Qb2 {[%clk 0:02:03.6]}
22... Nf5 {[%clk 0:02:26.5]} 23. Bh3 {[%clk 0:02:02.5]} 23... g6 {[%clk
0:02:24.3]} 24. f3 {[%clk 0:02:00]} 24... Nf6 {[%clk 0:02:22.6]} 25. Re1 {[%clk
0:01:57.1]} 25... h5 {[%clk 0:02:18.6]} 26. Kf2 {[%clk 0:01:47.7]} 26... Kg7
{[%clk 0:02:17.4]} 27. Rcd1 {[%clk 0:01:45.6]} 27... Qb7 {[%clk 0:01:57.3]} 28.
Nc1 {[%clk 0:01:41]} 28... Qc7 {[%clk 0:01:50.1]} 29. Nd3 {[%clk 0:01:40.2]}
29... Rg8 {[%clk 0:01:49.3]} 30. Ne5 {[%clk 0:01:31.1]} 30... Kh7 {[%clk
0:01:47.4]} 31. Rh1 {[%clk 0:01:29.2]} 31... g5 {[%clk 0:01:44.6]} 32. Bxf5+
{[%clk 0:01:24.5]} 32... exf5 {[%clk 0:01:44.1]} 33. Qc2 {[%clk 0:01:23.3]}
33... Ne4+ {[%clk 0:01:32.3]} 34. fxe4 {[%clk 0:01:22.5]} 34... dxe4 {[%clk
0:01:31.4]} 35. Qd2 {[%clk 0:01:17.9]} 35... f6 {[%clk 0:01:30.5]} 36. Nc4
{[%clk 0:01:17.5]} 36... gxf4 {[%clk 0:01:28.4]} 37. Qxf4 {[%clk 0:01:18.4]}
37... Qxf4+ {[%clk 0:01:27.7]} 38. gxf4 {[%clk 0:01:19.3]} 38... Rg4 {[%clk
0:01:27.6]} 39. Ke3 {[%clk 0:01:12.9]} 39... Ra8 {[%clk 0:01:22.1]} 40. Rdg1
{[%clk 0:01:09.8]} 40... Rh4 {[%clk 0:01:16.3]} 41. Rg3 {[%clk 0:01:06.5]} 41...
Ra7 {[%clk 0:01:14.5]} 42. h3 {[%clk 0:01:05.8]} 42... Rg7 {[%clk 0:01:11.9]}
43. Rhg1 {[%clk 0:01:05.1]} 43... Rxh3 {[%clk 0:01:11]} 44. Rxh3 {[%clk
0:01:04.1]} 44... Rxg1 {[%clk 0:01:11]} 45. Nxa5 {[%clk 0:01:01.8]} 45... Kg6
{[%clk 0:01:07.7]} 46. Nxc6 {[%clk 0:01:00.9]} 46... Rb1 {[%clk 0:01:05.8]} 47.
Na5 {[%clk 0:01:00.1]} 1-0

[Event "*** Titled Tuesday Blitz"]
[Site "Chess.com"]
[Date "2020.04.14"]
[Round "2"]
[White "Darhild"]
[Black "Frogo47"]
[Result "1/2-1/2"]
[WhiteElo "2707"]
[BlackElo "2516"]
[TimeControl "180+1"]
[EndTime "10:16:12 PDT"]
[Termination "Game drawn by repetition"]

1. Nf3 {[%clk 0:03:00.9]} 1... Nf6 {[%clk 0:02:59.1]} 2. g3 {[%clk 0:03:00.7]}
2... g6 {[%clk 0:02:59.3]} 3. Bg2 {[%clk 0:03:01]} 3... Bg7 {[%clk 0:03:00.2]}
4. O-O {[%clk 0:03:01.6]} 4... O-O {[%clk 0:03:00.7]} 5. d4 {[%clk 0:03:01.7]}
5... Nc6 {[%clk 0:03:00.4]} 6. d5 {[%clk 0:02:56.6]} 6... Na5 {[%clk 0:02:53.9]}
7. Nc3 {[%clk 0:02:46.8]} 7... c5 {[%clk 0:02:42.6]} 8. e4 {[%clk 0:02:43.5]}
8... d6 {[%clk 0:02:42.5]} 9. Rb1 {[%clk 0:02:44]} 9... a6 {[%clk 0:02:36.6]}
10. Re1 {[%clk 0:02:18]} 10... Bg4 {[%clk 0:02:32.3]} 11. h3 {[%clk 0:02:07.7]}
11... Bxf3 {[%clk 0:02:32.2]} 12. Qxf3 {[%clk 0:02:08.6]} 12... Nd7 {[%clk
0:02:23.5]} 13. Qe2 {[%clk 0:02:02.5]} 13... b5 {[%clk 0:02:22.1]} 14. f4 {[%clk
0:01:58.6]} 14... Rb8 {[%clk 0:02:14.2]} 15. Nd1 {[%clk 0:01:53.1]} 15... Re8
{[%clk 0:02:10.6]} 16. b3 {[%clk 0:01:44.3]} 16... e6 {[%clk 0:02:09.3]} 17.
dxe6 {[%clk 0:01:41.3]} 17... Rxe6 {[%clk 0:02:08.7]} 18. Bb2 {[%clk 0:01:41.1]}
18... Bxb2 {[%clk 0:02:06.6]} 19. Nxb2 {[%clk 0:01:41]} 19... Nc6 {[%clk
0:02:02.1]} 20. Qd2 {[%clk 0:01:38.7]} 20... Qb6 {[%clk 0:01:49.2]} 21. Kh2
{[%clk 0:01:36]} 21... Rbe8 {[%clk 0:01:48.3]} 22. Rbd1 {[%clk 0:01:32.8]} 22...
Nf6 {[%clk 0:01:39.6]} 23. f5 {[%clk 0:01:09.4]} 23... gxf5 {[%clk 0:01:38.8]}
24. exf5 {[%clk 0:01:05.6]} 24... Rxe1 {[%clk 0:01:38.1]} 25. Rxe1 {[%clk
0:00:46.2]} 25... Rxe1 {[%clk 0:01:37.3]} 26. Qxe1 {[%clk 0:00:47.1]} 26... Ne5
{[%clk 0:01:35.5]} 27. Nd3 {[%clk 0:00:47.1]} 27... Nxd3 {[%clk 0:01:26.3]} 28.
cxd3 {[%clk 0:00:48]} 28... Kg7 {[%clk 0:01:26.2]} 29. Qe3 {[%clk 0:00:46.5]}
29... h6 {[%clk 0:01:26.5]} 30. Qe7 {[%clk 0:00:46.2]} 30... d5 {[%clk
0:01:15.1]} 31. Qe5 {[%clk 0:00:46.1]} 31... c4 {[%clk 0:01:06.7]} 32. bxc4
{[%clk 0:00:43.6]} 32... dxc4 {[%clk 0:01:07.6]} 33. dxc4 {[%clk 0:00:43.9]}
33... bxc4 {[%clk 0:01:07.8]} 34. Qc3 {[%clk 0:00:38.4]} 34... Qc5 {[%clk
0:01:06.4]} 35. Bf1 {[%clk 0:00:37.5]} 35... Qf2+ {[%clk 0:01:04.3]} 36. Bg2
{[%clk 0:00:37.9]} 36... Qc5 {[%clk 0:01:03.9]} 37. Bf1 {[%clk 0:00:37.4]} 37...
Qf2+ {[%clk 0:01:03.5]} 38. Bg2 {[%clk 0:00:37.7]} 38... Qc5 {[%clk 0:01:00.5]}
1/2-1/2

[Event "*** Titled Tuesday Blitz"]
[Site "Chess.com"]
[Date "2020.04.14"]
[Round "2"]
[White "pichonazo"]
[Black "VitaliyBernadskiy"]
[Result "0-1"]
[WhiteElo "2309"]
[BlackElo "2769"]
[TimeControl "180+1"]
[EndTime "10:16:13 PDT"]
[Termination "VitaliyBernadskiy won by resignation"]

1. e4 {[%clk 0:03:00.9]} 1... e5 {[%clk 0:02:50.8]} 2. Bc4 {[%clk 0:02:59.1]}
2... Nf6 {[%clk 0:02:48.6]} 3. d4 {[%clk 0:02:58.1]} 3... Nc6 {[%clk 0:02:45.8]}
4. dxe5 {[%clk 0:02:56.2]} 4... Nxe5 {[%clk 0:02:46.7]} 5. Be2 {[%clk
0:02:55.9]} 5... Bc5 {[%clk 0:02:44.9]} 6. Nc3 {[%clk 0:02:53.6]} 6... d6 {[%clk
0:02:44.1]} 7. Nf3 {[%clk 0:02:52.5]} 7... O-O {[%clk 0:02:33.8]} 8. O-O {[%clk
0:02:49.7]} 8... h6 {[%clk 0:02:31.1]} 9. Bf4 {[%clk 0:02:45.1]} 9... Qe7 {[%clk
0:02:30]} 10. Nd5 {[%clk 0:02:39.5]} 10... Nxd5 {[%clk 0:02:29.3]} 11. exd5
{[%clk 0:02:38.7]} 11... Nxf3+ {[%clk 0:02:29.2]} 12. Bxf3 {[%clk 0:02:37.9]}
12... Qf6 {[%clk 0:02:30.1]} 13. Qc1 {[%clk 0:02:32.9]} 13... Bd7 {[%clk
0:02:27.8]} 14. c3 {[%clk 0:02:30.4]} 14... Rfe8 {[%clk 0:02:26.7]} 15. Qd2
{[%clk 0:02:29.7]} 15... g5 {[%clk 0:02:25.6]} 16. Be3 {[%clk 0:02:24.4]} 16...
g4 {[%clk 0:02:22.3]} 17. Bd1 {[%clk 0:02:18.4]} 17... Bxe3 {[%clk 0:02:18.8]}
18. fxe3 {[%clk 0:02:17.8]} 18... Qe5 {[%clk 0:02:18.3]} 19. Rf4 {[%clk
0:02:01]} 19... h5 {[%clk 0:02:13.8]} 20. Kf2 {[%clk 0:02:00.7]} 20... Bf5
{[%clk 0:02:09.7]} 21. Qd4 {[%clk 0:01:47]} 21... Bg6 {[%clk 0:02:08.8]} 22. Bb3
{[%clk 0:01:43.8]} 22... Re7 {[%clk 0:02:06.4]} 23. Re1 {[%clk 0:01:41.6]} 23...
Rae8 {[%clk 0:02:05.6]} 24. a4 {[%clk 0:01:35.8]} 24... a5 {[%clk 0:02:01.1]}
25. Bc4 {[%clk 0:01:33.7]} 25... Qg5 {[%clk 0:02:00.2]} 26. Kg1 {[%clk
0:01:28.7]} 26... Re4 {[%clk 0:01:57.5]} 27. Rxe4 {[%clk 0:01:24.6]} 27... Rxe4
{[%clk 0:01:58.4]} 28. Qd3 {[%clk 0:01:24.6]} 28... Qe5 {[%clk 0:01:51.8]} 29.
Qe2 {[%clk 0:01:14.3]} 29... h4 {[%clk 0:01:50.8]} 30. Bb3 {[%clk 0:01:11.7]}
30... Qg5 {[%clk 0:01:41.8]} 31. Bc2 {[%clk 0:01:09.8]} 31... Re5 {[%clk
0:01:41.5]} 32. Bxg6 {[%clk 0:01:08.6]} 32... Qxg6 {[%clk 0:01:39.9]} 33. c4
{[%clk 0:01:03.8]} 33... h3 {[%clk 0:01:38.7]} 34. g3 {[%clk 0:01:02.8]} 34...
Qe4 {[%clk 0:01:37.4]} 35. b3 {[%clk 0:01:02.6]} 35... Kg7 {[%clk 0:01:33.8]}
36. Rf1 {[%clk 0:00:57.5]} 36... Qxe3+ {[%clk 0:01:32]} 37. Qxe3 {[%clk
0:00:51.6]} 37... Rxe3 {[%clk 0:01:32.9]} 38. Rf4 {[%clk 0:00:51.3]} 38... Rxb3
{[%clk 0:01:33.4]} 39. Rxg4+ {[%clk 0:00:51]} 39... Kf8 {[%clk 0:01:33.9]} 40.
Rh4 {[%clk 0:00:50.8]} 40... Rb4 {[%clk 0:01:28.1]} 41. Rxh3 {[%clk 0:00:50.4]}
41... Rxa4 {[%clk 0:01:27.7]} 42. Rh8+ {[%clk 0:00:50.2]} 42... Kg7 {[%clk
0:01:27]} 43. Rb8 {[%clk 0:00:49]} 43... b6 {[%clk 0:01:23.9]} 44. h4 {[%clk
0:00:48.9]} 44... Rxc4 {[%clk 0:01:23.7]} 45. Kg2 {[%clk 0:00:49.5]} 45... a4
{[%clk 0:01:23.9]} 46. Kf3 {[%clk 0:00:46.2]} 46... Rc5 {[%clk 0:01:21.3]} 47.
Ra8 {[%clk 0:00:43.8]} 47... Ra5 {[%clk 0:01:16.1]} 0-1